bitfinex-derivatives/quotes_ETHF0:USTF0_20240927
["timestamp","ask_amount","ask_price","bid_price","bid_amount"]
[1727433474097,0.94482,2645.4,2644.9,3.25]
[1727433474295,0.94482,2645.4,2644.7,0.502]
[1727433474296,0.94482,2645.4,2644.7,3.752]
[1727433474596,0.94482,2645.4,2644.9,3.25]
[1727433474597,0.37797,2645.1,2644.9,3.25]
[1727433475489,0.37797,2645.1,2644.9,3.62798]
[1727433477992,0.37797,2645.0,2644.9,3.25]
[1727433479893,0.37797,2645.1,2644.9,3.62799]
[1727433480788,0.94485,2645.3,2644.9,3.25]
[1727433481098,0.37797,2645.0,2644.9,3.25]
[1727433483090,0.37799,2644.9,2644.8,3.2078]
[1727433483499,1.32296,2644.9,2644.8,3.2078]
[1727433483699,0.94501,2644.8,2644.4,3.25]
[1727433483899,0.37804,2644.5,2644.4,3.25]
[1727433484096,0.37806,2644.4,2644.2,7.75287]
[1727433484300,0.37807,2644.3,2644.2,7.3748]
[1727433484701,0.37806,2644.4,2644.2,7.75287]
[1727433484895,0.87335,2644.5,2644.3,0.37807]
[1727433485095,0.4953,2644.5,2644.3,0.37807]
[1727433485496,0.37802,2644.7,2644.5,0.37804]
[1727433485800,0.37802,2644.7,2644.6,0.37803]
[1727433487800,0.37801,2644.8,2644.6,3.62802]
[1727433488007,0.37802,2644.7,2644.6,3.25]
[1727433489810,0.37804,2644.5,2644.4,6.83585]
[1727433490201,0.37804,2644.5,2644.4,6.4578]
[1727433490396,0.37804,2644.5,2644.4,3.2078]
[1727433491206,0.37804,2644.5,2644.4,6.4578]
[1727433493207,0.37804,2644.5,2644.4,6.83586]
[1727433493705,0.37804,2644.5,2644.4,6.4578]
[1727433496410,0.37804,2644.5,2644.4,6.83586]
[1727433498112,0.37804,2644.5,2644.4,6.4578]
[1727433501006,0.37804,2644.5,2644.4,3.25]
[1727433501213,0.37804,2644.5,2644.4,6.4578]
[1727433506712,1.32316,2644.5,2644.4,6.4578]
[1727433507625,0.37804,2644.5,2644.4,6.4578]
[1727433513924,0.37804,2644.5,2644.4,3.2078]
[1727433514630,1.32254,2644.6,2644.4,3.58585]
[1727433514923,0.37804,2644.5,2644.4,3.2078]
[1727433521332,0.37806,2644.4,2644.3,0.37807]
[1727433521629,0.37806,2644.4,2644.3,3.58587]
[1727433522925,0.37806,2644.4,2644.3,3.2078]
[1727433523732,0.37806,2644.4,2644.3,3.58587]
[1727433524630,0.37806,2644.4,2644.3,0.37807]
[1727433524937,0.37806,2644.4,2644.3,3.58587]
[1727433526935,0.37806,2644.4,2644.3,3.2078]
[1727433528334,0.37806,2644.4,2644.3,3.58587]
[1727433528537,0.37806,2644.4,2644.3,3.2078]
[1727433529434,0.37806,2644.4,2644.3,3.58587]
[1727433529637,0.37806,2644.4,2644.3,3.2078]
[1727433530330,0.37806,2644.4,2644.3,4.7078]
[1727433530730,0.37806,2644.4,2644.3,5.08587]
[1727433530940,0.37806,2644.4,2644.3,4.7078]
[1727433532136,0.37806,2644.4,2644.3,1.5]
[1727433532540,0.37806,2644.4,2644.3,4.7078]
[1727433532941,0.37806,2644.4,2644.3,5.08587]
[1727433533248,0.37806,2644.4,2644.3,6.07493274]
[1727433533435,0.37806,2644.4,2644.3,5.08587]
[1727433533744,1.8896,2644.6,2644.3,5.08587]
[1727433533745,0.9445,2644.6,2644.4,0.37805]
[1727433533953,0.484,2644.6,2644.5,1.5]
[1727433534238,0.484,2644.6,2644.5,1.87804]
[1727433534438,0.4771,2645.0,2644.9,0.37799]
[1727433534771,0.37797,2645.0,2644.9,3.2078]
[1727433536233,0.37799,2644.9,2644.8,1.5]
[1727433536839,0.87209,2644.9,2644.8,1.5]
[1727433537542,0.87209,2644.9,2644.5,4.7078]
[1727433537543,0.94501,2644.8,2644.5,4.7078]
[1727433537846,0.4834,2644.7,2644.5,4.7078]
[1727433538142,0.4834,2644.7,2644.5,3.2078]
[1727433538143,1.32311,2644.6,2644.5,3.2078]
[1727433542347,0.37803,2644.6,2644.5,4.7078]
[1727433543048,0.4941,2644.9,2644.6,0.37802]
[1727433543355,1.33889,2644.9,2644.8,1.5]
[1727433544373,0.378,2644.8,2644.7,0.4994]
[1727433546543,0.8448,2644.9,2644.7,0.87741]
[1727433546850,0.378,2644.8,2644.7,0.87741]
[1727433547053,0.378,2644.8,2644.7,0.4994]
[1727433547948,0.378,2644.8,2644.7,4.65822]
[1727433548753,0.378,2644.8,2644.7,4.2802]
[1727433557769,0.378,2644.8,2644.7,4.65822]
[1727433558866,0.378,2644.8,2644.7,4.2802]
[1727433562068,0.378,2644.8,2644.7,4.65822]
[1727433562264,0.94496,2645.0,2644.7,4.65822]
[1727433562458,0.94496,2645.0,2644.7,0.87742]
[1727433562459,0.378,2644.8,2644.7,0.87742]
[1727433562664,0.378,2644.8,2644.7,0.4994]
[1727433562867,0.378,2644.8,2644.7,4.2802]
[1727433565376,2.36239,2645.2,2644.8,0.378]
[1727433565566,2.36239,2645.2,2644.8,3.628]
[1727433565872,0.37799,2644.9,2644.8,3.628]
[1727433566273,0.37799,2644.9,2644.8,1.878]
[1727433566567,0.37799,2644.9,2644.8,1.5]
[1727433571575,0.378,2644.8,2644.7,1.9994]
[1727433571774,0.8587,2644.8,2644.7,1.5]
[1727433571972,1.80371,2644.8,2644.7,1.5]
[1727433572381,1.80371,2644.8,2644.6,3.2078]
[1727433572382,0.37802,2644.7,2644.6,3.2078]
[1727433572672,2.28137,2644.7,2644.6,4.7078]
[1727433573282,2.28137,2644.7,2643.9,3.2078]
[1727433573283,0.94515,2644.5,2643.9,3.2078]
[1727433573479,0.37809,2644.2,2644.1,1.5]
[1727433578080,0.4807,2644.4,2644.1,1.5]
[1727433578278,0.85876,2644.4,2644.3,1.5]
[1727433582684,0.85876,2644.4,2644.2,1.5]
[1727433582685,0.4807,2644.4,2644.2,1.5]
[1727433583579,0.37809,2644.3,2644.2,1.5]
[1727433584581,1.32328,2644.3,2644.2,1.5]
[1727433589696,0.37809,2644.3,2644.2,1.5]
[1727433590790,0.37809,2644.3,2644.2,2.0042]
[1727433594400,0.4807,2644.4,2644.2,2.38229]
[1727433594695,0.37807,2644.3,2644.2,2.0042]
[1727433597689,1.32326,2644.3,2644.2,1.5]
[1727433597888,1.32326,2644.3,2644.1,3.2078]
[1727433597889,0.37809,2644.2,2644.1,4.7078]
[1727433598291,0.37812,2644.0,2643.9,0.4933]
[1727433598491,1.32342,2644.0,2643.9,0.4933]
[1727433598800,1.32342,2644.0,2643.8,4.7078]
[1727433598801,0.37813,2643.9,2643.8,4.7078]
[1727433599010,0.88943,2643.9,2643.8,4.7078]
[1727433600300,1.83476,2643.9,2643.8,4.7078]
[1727433600489,0.88943,2643.9,2643.8,4.7078]
[1727433604598,1.83476,2643.9,2643.8,4.7078]
[1727433604994,1.83476,2643.9,2643.8,1.5]
[1727433606801,1.83476,2643.9,2643.8,3.2078]
[1727433607000,1.83476,2643.9,2643.8,4.7078]
[1727433607792,2.78009,2643.9,2643.8,2.38528]
[1727433608104,1.32366,2643.5,2643.4,1.9902]
[1727433608396,1.32366,2643.5,2643.4,1.5]
[1727433609291,1.82586,2643.5,2643.4,1.5]
[1727433615498,1.82586,2643.5,2643.4,0.47534]
[1727433615698,1.32377,2643.3,2643.2,2.4581]
[1727433616200,0.37826,2643.0,2642.9,0.4711]
[1727433616407,0.37826,2643.0,2642.9,2.4817]
[1727433617699,1.32391,2643.0,2642.9,2.0106]
[1727433617903,0.37826,2643.0,2642.9,2.0106]
[1727433618909,1.32391,2643.0,2642.9,2.0106]
[1727433619296,0.37826,2643.0,2642.9,2.0106]
[1727433619502,1.32391,2643.0,2642.9,2.0106]
[1727433619699,0.37826,2643.0,2642.9,2.0106]
[1727433632511,0.9456,2643.2,2642.9,2.0106]
[1727433632512,4.15328,2643.5,2642.9,2.0106]
[1727433632708,0.37823,2643.2,2643.1,1.5]
[1727433635412,3.2078,2643.5,2643.1,1.5]
[1727433635614,3.2078,2643.5,2642.9,3.7184]
[1727433635615,0.37818,2643.6,2643.4,0.3782]
[1727433635815,0.37818,2643.6,2643.5,1.9826]
[1727433636311,4.078,2643.7,2643.6,0.37817]
[1727433636615,1.3397,2643.8,2643.6,0.37817]
[1727433636616,0.37815,2643.8,2643.6,0.37817]
[1727433636818,0.37815,2643.8,2643.7,1.982]
[1727433637114,0.37815,2643.8,2643.7,0.482]
[1727433637325,0.37817,2643.6,2643.5,3.6904]
[1727433637829,0.37817,2643.6,2643.5,3.2078]
[1727433638720,0.37817,2643.6,2643.5,3.658]
[1727433638918,0.37817,2643.6,2643.5,5.158]
[1727433639520,0.37817,2643.7,2643.6,0.37817]
[1727433639725,4.60971,2644.0,2643.6,0.37817]
[1727433639907,3.6644,2644.0,2643.7,2.36556]
[1727433640207,0.37813,2643.9,2643.8,0.37814]
[1727433640414,0.37813,2643.9,2643.7,2.36555]
[1727433640724,0.37813,2643.9,2643.8,0.37814]
[1727433641014,4.04252,2644.0,2643.8,1.87814]
[1727433641322,0.37813,2643.9,2643.8,1.87814]
[1727433642420,0.37813,2643.9,2643.8,1.5]
[1727433642620,0.37814,2643.8,2643.7,1.9874]
[1727433642825,0.37817,2643.6,2643.5,3.2078]
[1727433643422,3.33860757,2643.8,2643.5,3.58598]
[1727433643638,0.37817,2643.6,2643.5,3.2078]
[1727433643915,1.83527165,2643.6,2643.5,3.2078]
[1727433644309,0.37817,2643.6,2643.5,3.2078]
[1727433644517,0.85557,2643.6,2643.5,3.2078]
[1727433644814,1.31527,2643.6,2643.5,3.2078]
[1727433648322,0.37817,2643.6,2643.5,3.58599]
[1727433648720,0.37817,2643.6,2643.5,3.2078]
[1727433649333,2.31788757,2643.6,2643.5,3.2078]
[1727433650013,1.83647107,2643.6,2643.5,3.2078]
[1727433650816,1.45830107,2643.6,2643.5,5.08599]
[1727433651021,0.37816,2643.7,2643.6,0.37817]
[1727433651223,2.39321757,2643.8,2643.5,5.08598]
[1727433651424,1.45859938,2643.6,2643.5,5.08598]
[1727433652120,1.83676938,2643.6,2643.5,5.08598]
[1727433652627,1.83676938,2643.6,2643.5,3.2078]
[1727433652628,2.31788757,2643.6,2643.5,3.2078]
[1727433653823,2.31788757,2643.6,2643.1,0.37824]
[1727433653824,0.37822,2643.3,2643.1,0.37824]
[1727433654028,1.83636591,2643.3,2643.1,1.5]
[1727433654232,2.30987591,2643.2,2643.1,1.5]
[1727433654433,2.87964591,2643.2,2643.1,1.5]
[1727433654726,1.45814591,2643.2,2643.1,1.87824]
[1727433655025,1.45814591,2643.3,2643.1,1.5]
[1727433655227,0.37823,2643.2,2643.1,1.5]
[1727433655424,1.45814591,2643.2,2643.1,1.5]
[1727433655725,1.83637591,2643.2,2643.1,1.5]
[1727433657527,0.37823,2643.2,2643.1,1.5]
[1727433658027,2.32242454,2643.2,2643.1,1.5]
[1727433658726,2.32242454,2643.2,2642.9,4.7078]
[1727433658727,0.37826,2643.0,2642.9,4.7078]
[1727433659032,1.83621727,2643.0,2642.9,4.7078]
[1727433659525,1.836122,2643.0,2642.9,4.7078]
[1727433659731,1.457862,2643.0,2642.9,5.08607]
[1727433660524,1.836122,2643.0,2642.9,5.08607]
[1727433660726,1.836122,2643.0,2642.9,4.7078]
[1727433662131,1.457862,2643.0,2642.9,5.08607]
[1727433662538,1.457862,2643.1,2643.0,0.37826]
[1727433662841,1.457862,2643.2,2643.1,0.37824]
[1727433663026,1.457862,2643.2,2643.1,1.87824]
[1727433665628,1.457862,2643.2,2643.1,5.66144]
[1727433665829,1.457862,2643.3,2643.2,0.37823]
[1727433666036,1.836062,2643.4,2643.3,0.37822]
[1727433666222,1.836062,2643.4,2643.3,1.87822]
[1727433666535,1.457862,2643.4,2643.3,1.87822]
[1727433666733,2.32239454,2643.5,2643.3,5.66142]
[1727433666933,2.32239454,2643.5,2643.3,1.87822]
[1727433667121,0.3782,2643.4,2643.3,1.87822]
[1727433667535,2.32238454,2643.5,2643.4,0.3782]
[1727433668426,1.94419454,2643.5,2643.4,0.3782]
[1727433668636,2.80984893,2643.6,2643.5,0.37819]
[1727433668637,1.94419454,2643.6,2643.5,0.37819]
[1727433668830,2.79575454,2643.7,2643.6,0.37817]
[1727433669334,0.4734,2643.7,2643.6,0.37817]
[1727433669537,1.46040072,2643.7,2643.6,0.37817]
[1727433669741,1.46040072,2643.7,2643.6,4.16057]
[1727433669938,1.46040072,2643.8,2643.7,0.37816]
[1727433670132,1.83854072,2643.8,2643.7,4.7078]
[1727433670331,0.37814,2643.8,2643.7,4.7078]
[1727433670944,1.46039091,2643.8,2643.7,5.08595]
[1727433671240,1.46034966,2643.8,2643.7,4.7078]
[1727433671434,1.46029408,2643.8,2643.7,5.08596]
[1727433672232,1.947071,2643.8,2643.7,5.08596]
[1727433672628,1.947071,2643.8,2643.7,8.86836]
[1727433672833,1.947071,2643.9,2643.8,0.37814]
[1727433673033,1.94705019,2643.9,2643.8,0.83244]
[1727433673325,1.94705019,2643.9,2643.8,4.61484]
[1727433673531,1.94705019,2643.9,2643.8,4.2367]
[1727433673732,1.94705019,2643.9,2643.8,4.61484]
[1727433674134,1.94705019,2643.9,2643.8,4.2367]
[1727433674545,1.94705019,2643.9,2643.8,4.61484]
[1727433674727,1.94705019,2643.9,2643.8,0.4543]
[1727433675648,1.94705019,2643.9,2643.8,7.4445]
[1727433675944,1.94705019,2643.9,2643.8,3.2078]
[1727433677147,1.94705019,2643.9,2643.8,3.58594]
[1727433677341,1.94705019,2644.0,2643.8,3.58594]
[1727433677547,2.32517019,2644.0,2643.9,1.5]
[1727433677746,0.37812,2644.0,2643.9,1.5]
[1727433678148,3.26987893,2644.1,2643.9,1.87813]
[1727433678449,1.94591625,2644.0,2643.9,1.5]
[1727433679147,3.26987893,2644.1,2643.9,1.5]
[1727433679543,1.94568135,2644.0,2643.9,1.5]
[1727433680148,1.45920289,2644.0,2643.9,1.5]
[1727433680347,1.45920289,2644.0,2643.9,1.87813]
[1727433681055,1.45920289,2644.0,2643.9,1.5]
[1727433681746,1.83732289,2644.0,2643.8,3.2078]
[1727433681950,1.83732289,2644.0,2643.9,1.5]
[1727433681951,1.45920289,2644.0,2643.9,1.5]
[1727433682146,1.83732289,2644.0,2643.9,1.5]
[1727433683344,1.45920289,2644.0,2643.9,1.5]
[1727433683541,1.83732289,2644.0,2643.9,1.5]
[1727433683755,1.91930289,2644.1,2644.0,0.37812]
[1727433683959,1.91930289,2644.1,2643.9,1.87812]
[1727433684252,1.91930289,2644.1,2644.0,0.37812]
[1727433684460,2.87428135,2644.2,2644.1,0.3781]
[1727433684461,0.9286,2644.2,2644.1,0.3781]
[1727433684647,0.9286,2644.2,2644.1,4.7078]
[1727433684848,2.38780289,2644.2,2644.1,5.0859]
[1727433685055,0.9286,2644.2,2644.1,5.0859]
[1727433685360,0.9286,2644.2,2644.1,5.5375]
[1727433686153,0.9286,2644.2,2644.1,5.1594]
[1727433686748,0.9286,2644.2,2644.1,5.5375]
[1727433688056,0.4526,2644.3,2644.2,0.37809]
[1727433688260,1.42510445,2644.3,2644.2,0.37809]
[1727433688564,1.42510445,2644.3,2644.1,5.53749]
[1727433689061,1.42510445,2644.3,2644.2,0.37809]
[1727433689244,0.4526,2644.3,2644.2,0.37809]
[1727433689453,1.92310445,2644.4,2644.2,3.7816]
[1727433689655,1.45920289,2644.5,2644.1,6.10465]
[1727433689656,0.486,2644.5,2644.4,0.37806]
[1727433689857,0.97250445,2644.6,2644.5,0.37804]
[1727433690159,0.37803,2644.6,2644.5,1.5]
[1727433690368,1.35053445,2644.6,2644.5,1.5]
[1727433690852,0.97250445,2644.6,2644.5,1.87804]
[1727433691047,1.35053445,2644.6,2644.5,1.5]
[1727433691251,0.97250445,2644.6,2644.5,1.5]
[1727433691857,1.92610445,2644.7,2644.6,0.37803]
[1727433692048,0.9536,2644.7,2644.6,0.37803]
[1727433692657,0.486,2644.7,2644.6,0.37803]
[1727433692859,0.86402,2644.7,2644.5,2.78054]
[1727433693060,0.486,2644.7,2644.5,2.4025]
[1727433693252,0.86403,2644.7,2644.5,1.87804]
[1727433693453,1.83653445,2644.7,2644.5,1.87804]
[1727433693656,0.86402,2644.7,2644.5,1.87804]
[1727433693856,1.83652445,2644.7,2644.5,1.87804]
[1727433694562,0.86402,2644.7,2644.6,0.4593]
[1727433694956,0.86402,2644.7,2644.5,1.87804]
[1727433695155,2.80970135,2644.7,2644.5,1.87804]
[1727433697151,1.45608017,2644.6,2644.5,1.87804]
[1727433697750,1.45608017,2644.6,2644.5,2.35284]
[1727433698572,2.87278135,2644.8,2644.6,0.37803]
[1727433698573,1.45608017,2644.7,2644.6,0.37803]
[1727433698858,1.83410017,2644.7,2644.6,1.9863]
[1727433699054,1.45574439,2644.7,2644.6,1.9863]
[1727433699261,3.25079135,2644.8,2644.6,1.87803]
[1727433699460,3.25079135,2644.8,2644.7,3.2078]
[1727433700461,3.25079135,2644.8,2644.6,1.87802]
[1727433700665,1.94568135,2644.7,2644.5,1.5]
[1727433700864,1.83371175,2644.6,2644.5,1.5]
[1727433701056,0.37804,2644.5,2644.4,3.2078]
[1727433701256,1.8337191,2644.5,2644.4,1.5]
[1727433701753,0.37809,2644.2,2644.1,3.2078]
[1727433701963,0.37809,2644.2,2644.1,4.7078]
[1727433702164,3.26899135,2644.2,2644.1,1.5]
[1727433702465,0.3781,2644.1,2644.0,1.5]
[1727433703661,1.44132911,2644.2,2644.0,1.87811]
[1727433703857,0.471,2644.2,2644.1,4.7078]
[1727433704057,0.84909,2644.2,2644.1,4.7078]
[1727433704262,0.84909,2644.2,2644.1,6.4578]
[1727433704562,0.471,2644.2,2644.1,6.4578]
[1727433704758,0.84909,2644.2,2644.1,6.4578]
[1727433705166,0.471,2644.2,2644.1,6.4578]
[1727433706065,0.97032911,2644.3,2644.2,0.37809]
[1727433706265,0.97032911,2644.4,2644.3,0.37807]
[1727433706463,0.4685,2644.5,2644.4,0.37806]
[1727433706659,0.4685,2644.5,2644.4,3.58586]
[1727433706965,0.4685,2644.5,2644.4,3.6575]
[1727433707166,0.4685,2644.5,2644.4,4.03556]
[1727433707563,1.90562911,2644.7,2644.5,0.37804]
[1727433707766,2.28364911,2644.7,2644.5,3.62804]
[1727433708571,2.28364911,2644.7,2644.5,3.25]
[1727433708964,2.28364911,2644.7,2644.5,3.62804]
[1727433710467,2.28364911,2644.7,2644.5,3.25]
[1727433710672,2.28364911,2644.7,2644.5,3.62804]
[1727433711267,2.28364911,2644.7,2644.5,3.25]
[1727433711570,2.28364911,2644.7,2644.5,3.62804]
[1727433711571,0.97032911,2644.6,2644.5,3.62804]
[1727433712073,0.97032911,2644.6,2644.5,3.25]
[1727433712765,0.97244628,2644.6,2644.5,3.62804]
[1727433713165,0.97244628,2644.6,2644.5,7.40964]
[1727433713367,0.97244628,2644.6,2644.5,7.88314]
[1727433717478,3.75047135,2644.9,2644.7,0.37801]
[1727433717479,4.23645893,2644.9,2644.7,0.37801]
[1727433717772,2.80967893,2644.8,2644.7,3.2078]
[1727433718877,2.80967893,2644.8,2644.7,6.4578]
[1727433719074,2.80966893,2644.8,2644.7,6.4578]
[1727433720169,2.43166893,2644.8,2644.7,6.83582]
[1727433720566,2.80966893,2644.8,2644.7,6.4578]
[1727433721275,2.43166893,2644.8,2644.7,6.83582]
[1727433721575,2.43166893,2645.0,2644.8,0.378]
[1727433721776,2.43166893,2645.1,2645.0,0.37797]
[1727433721971,0.4583,2645.3,2645.1,0.37796]
[1727433721972,2.43166893,2645.2,2645.1,0.37796]
[1727433722172,2.88996893,2645.3,2645.2,0.37794]
[1727433722380,2.43166893,2645.3,2645.2,3.62794]
[1727433722576,1.9457193,2645.3,2645.2,7.40794]
[1727433723101,1.94585733,2645.3,2645.2,7.40794]
[1727433723574,3.71388374,2645.5,2645.3,0.37793]
[1727433723575,1.94585733,2645.4,2645.3,0.37793]
[1727433723779,1.94585733,2645.4,2645.3,3.58573]
[1727433725378,1.45849646,2645.5,2645.4,0.37791]
[1727433725688,1.45849646,2645.6,2645.5,0.3779]
[1727433726186,0.97245287,2645.6,2645.4,4.10231]
[1727433726878,0.97245287,2645.6,2645.5,0.3779]
[1727433727284,1.46045287,2645.7,2645.5,4.1579]
[1727433727578,1.83832287,2645.7,2645.6,6.4578]
[1727433728372,1.83832287,2645.7,2645.6,6.83569]
[1727433728373,0.97245287,2645.7,2645.6,6.83569]
[1727433728583,2.37779646,2645.8,2645.6,6.83569]
[1727433728584,1.89175287,2645.8,2645.6,6.83569]
[1727433728781,2.26961287,2645.8,2645.6,6.83569]
[1727433729075,1.89175287,2645.8,2645.7,0.37787]
[1727433729475,1.89175287,2645.8,2645.6,6.83568]
[1727433729677,0.37787,2645.7,2645.6,6.4578]
[1727433730083,1.35032287,2645.7,2645.6,6.4578]
[1727433730284,0.37787,2645.7,2645.6,6.4578]
[1727433730680,1.35032287,2645.7,2645.6,6.4578]
[1727433732489,2.80995374,2645.7,2645.6,6.4578]
[1727433734590,0.37787,2645.7,2645.6,3.2078]
[1727433734890,0.37797,2645.1,2645.0,3.2078]
[1727433735095,2.31889474,2645.1,2645.0,3.2078]
[1727433735296,0.37797,2645.1,2645.0,3.2078]
[1727433735490,2.31874555,2645.1,2645.0,3.2078]
[1727433735691,1.94077555,2645.1,2645.0,3.2078]
[1727433735997,2.31873555,2645.1,2645.0,3.2078]
[1727433736582,0.378,2644.8,2644.7,0.4475]
[1727433736786,0.378,2644.8,2644.7,3.6975]
[1727433736787,2.31878218,2644.8,2644.7,3.6975]
[1727433736994,0.37802,2644.7,2644.5,3.58584]
[1727433737296,0.4605,2644.7,2644.6,3.25]
[1727433737597,0.4605,2644.7,2644.6,3.62803]
[1727433738095,0.4605,2644.7,2644.6,3.25]
[1727433738393,2.40128218,2644.7,2644.6,3.25]
[1727433739493,2.40128218,2644.7,2644.6,7.40963]
[1727433739989,2.73071167,2644.7,2644.6,3.62803]
[1727433740200,0.78992949,2644.7,2644.6,3.62803]
[1727433740391,0.7899339,2644.7,2644.6,3.62803]
[1727433743094,0.4605,2644.7,2644.6,3.62803]
[1727433743492,0.83852,2644.7,2644.5,3.58583]
[1727433743692,0.4605,2644.7,2644.6,3.25]
[1727433743893,0.79003941,2644.7,2644.6,3.25]
[1727433744095,0.4605,2644.7,2644.6,3.62803]
[1727433744689,0.4444,2644.9,2644.7,0.378]
[1727433744893,0.82239,2644.9,2644.8,6.9025]
[1727433745094,1.15194346,2644.9,2644.8,6.9025]
[1727433746104,0.70754346,2644.9,2644.8,6.9025]
[1727433746298,0.32955346,2644.9,2644.8,6.9025]
[1727433746603,0.32955346,2644.9,2644.8,7.2805]
[1727433747193,0.4589,2645.0,2644.8,7.2805]
[1727433747397,1.30005452,2644.9,2644.8,7.2805]
[1727433748295,1.300137,2644.9,2644.8,7.2805]
[1727433748901,0.97115083,2645.0,2644.9,0.37799]
[1727433749205,1.455795,2645.4,2645.3,0.37793]
[1727433749400,1.455795,2645.4,2645.3,3.62793]
[1727433749891,1.455795,2645.4,2645.3,3.722]
[1727433750496,1.455795,2645.4,2645.3,4.09993]
[1727433751206,1.455795,2645.5,2645.3,4.09993]
[1727433751393,1.455795,2645.4,2645.3,4.09993]
[1727433752213,1.833695,2645.5,2645.3,3.722]
[1727433752416,1.833695,2645.5,2645.4,3.25]
[1727433752417,1.455795,2645.5,2645.4,3.25]
[1727433752918,1.455795,2645.5,2645.4,3.62792]
[1727433753120,1.455795,2645.5,2645.4,4.12462]
[1727433754414,1.455795,2645.5,2645.4,4.58862]
[1727433754606,1.94078218,2645.7,2645.4,4.2107]
[1727433754607,1.455795,2645.6,2645.4,4.2107]
[1727433754807,1.455795,2645.6,2645.5,6.4578]
[1727433755214,2.31867218,2645.6,2645.5,6.4578]
[1727433755417,2.30475741,2645.6,2645.5,6.4578]
[1727433755912,2.30475741,2645.6,2645.5,3.2078]
[1727433756224,5.57151,2645.6,2645.5,3.2078]
[1727433756720,4.62679,2645.6,2645.5,3.2078]
[1727433757018,0.84679,2645.6,2645.5,3.2078]
[1727433758521,2.78757218,2645.6,2645.5,3.2078]
[1727433758812,0.37792,2645.4,2645.3,3.25]
[1727433759116,1.45844028,2645.4,2645.1,0.5028]
[1727433759319,0.4801,2645.5,2645.1,3.7528]
[1727433759320,2.30157028,2645.3,2645.1,3.7528]
[1727433759507,0.84313,2645.3,2645.1,3.7528]
[1727433759812,0.37794,2645.2,2645.1,3.7528]
[1727433760019,0.37794,2645.2,2645.1,3.25]
[1727433760220,0.88174,2645.2,2645.1,3.25]
[1727433760522,2.340381,2645.2,2645.1,3.25]
[1727433760715,0.88174,2645.2,2645.1,3.25]
[1727433761021,1.20820751,2645.2,2645.1,3.25]
[1727433761224,3.14898969,2645.2,2645.1,3.25]
[1727433762112,1.20820751,2645.2,2645.1,3.25]
[1727433762619,0.88174,2645.2,2645.1,3.25]
[1727433762819,0.83033545,2645.2,2645.1,3.25]
[1727433763019,1.1568676,2645.2,2645.1,3.25]
[1727433763220,3.96629295,2645.2,2645.1,3.25]
[1727433763419,1.1568676,2645.2,2645.1,3.25]
[1727433763923,0.6530676,2645.2,2645.1,3.25]
[1727433765824,1.0310076,2645.2,2645.1,3.25]
[1727433766528,1.0310076,2645.2,2645.1,1.5]
[1727433768620,5.44112105,2645.2,2645.1,1.5]
[1727433769024,7.83915864,2645.2,2645.1,1.5]
[1727433769624,2.529849,2645.2,2645.1,1.5]
[1727433770628,2.97713253,2645.2,2645.1,1.5]
[1727433771930,3.59547038,2645.2,2645.1,1.5]
[1727433772129,9.36182142,2645.2,2645.1,1.5]
[1727433772533,6.92930909,2645.2,2645.1,1.5]
[1727433772727,9.36205012,2645.2,2645.1,1.5]
[1727433773130,9.03539961,2645.2,2645.1,1.5]
[1727433773436,1.32286,2645.1,2645.0,1.5]
[1727433773635,3.14872459,2645.1,2645.0,1.5]
[1727433773840,5.58146562,2645.1,2645.0,1.5]
[1727433775734,5.58146562,2645.1,2644.8,1.5]
[1727433775735,0.37799,2644.9,2644.8,1.5]
[1727433775936,0.704704,2644.9,2644.8,1.5]
[1727433776133,1.164504,2644.9,2644.8,1.5]
[1727433776329,0.378,2644.8,2644.7,3.2078]
[1727433776639,2.65110273,2644.8,2644.7,4.7078]
[1727433776832,2.65115048,2644.8,2644.7,4.7078]
[1727433777036,2.27315048,2644.8,2644.7,4.7078]
[1727433778437,2.65115048,2644.8,2644.7,4.7078]
[1727433778639,3.14025048,2644.8,2644.7,4.7078]
[1727433779042,0.37802,2644.7,2644.6,1.5]
[1727433779240,2.65127839,2644.7,2644.6,1.5]
[1727433779442,0.70478175,2644.7,2644.6,1.5]
[1727433780342,4.32585691,2644.7,2644.6,1.5]
[1727433780550,4.65265256,2644.7,2644.6,1.5]
[1727433781938,4.65260765,2644.7,2644.6,1.5]
[1727433782242,0.70481565,2644.7,2644.6,1.5]
[1727433784245,0.32679565,2644.7,2644.6,1.5]
[1727433784544,2.75973859,2644.7,2644.6,1.5]
[1727433784745,4.65219518,2644.7,2644.6,1.5]
[1727433787047,4.65903458,2644.7,2644.6,1.5]
[1727433788447,4.65903458,2644.7,2644.6,1.87803]
[1727433788448,0.32679565,2644.7,2644.6,1.87803]
[1727433789051,0.32679565,2644.7,2644.6,1.5]
[1727433790241,0.32679565,2644.7,2644.6,1.87803]
[1727433790640,0.32679565,2644.7,2644.6,1.5]
[1727433790943,0.70473391,2644.7,2644.6,1.5]
[1727433791259,0.32671391,2644.7,2644.6,1.5]
[1727433791756,0.70473391,2644.7,2644.6,1.5]
[1727433792143,2.65076283,2644.7,2644.6,1.5]
[1727433792544,2.27274283,2644.7,2644.6,1.87803]
[1727433792751,1.78617327,2644.7,2644.6,1.87803]
[1727433793047,1.78617327,2644.7,2644.6,1.5]
[1727433794247,0.32671391,2644.7,2644.6,1.5]
[1727433795449,0.70473391,2644.7,2644.6,1.5]
[1727433796250,2.65076283,2644.7,2644.6,1.5]
[1727433797751,2.10738391,2644.7,2644.6,1.5]